Cogmind - Beta 13 *** ADVENTURER MODE // 2024.04.01 @ 18:44:57 Player: WindowsAttacker Result: Destroyed by C-40 Crusher with Compactor Performance ------------- Evolutions (4) 2000 Regions Visited (7) 1400 Robots Destroyed (47) 235 Value Destroyed (1212) 1212 Prototype IDs (4) 80 Alien Tech Used (0) 0 Bonus (0) 0 TOTAL SCORE: 4927 Bonus ------- None Cogmind --------- Core Integrity 0/850 Matter 16/300 Energy 100/100 System Corruption 5% Temperature Cool (0) Movement Core (50) Location -6/Waste Parts ------- > --- POWER (2) -------- (None) > --- PROPULSION (5) --- (None) > --- UTILITY (4) ------ (None) > --- WEAPON (4) ------- (None) > --- INVENTORY (5) ---- Heavy Ion Engine Improved Deuterium Engine System Restoration Module Peak State ------------ > --- POWER ------------ Improved Deuterium Engine Light Fission Core > --- PROPULSION ------- Gravmag System Gravmag System Gravmag System Gravmag System Gravmag System > --- UTILITY ---------- Compact Matter Pod Improved Reaction Control System Shield Generator > --- WEAPON ----------- Gatling Laser Minigun Minigun Minigun > --- INVENTORY -------- Heavy Ion Engine Improved Deuterium Engine System Restoration Module [Rating: 53] Favorites ----------- Power Nuclear Core Engine Light Ion Engine Power Core Nuclear Core Propulsion Improved Hover Unit Treads Advanced Treads Leg Carbon-fiber Leg Wheel Wheel Hover Unit Improved Hover Unit Flight Unit Flight Unit Utility Shield Generator Device Shield Generator Storage Compact Matter Pod Protection Light Armor Plating Weapon Minigun Energy Gun EM Shotgun Ballistic Gun Minigun Launcher Grenade Launcher Build | -11 -10 -10 -9 -8 -7 -6 -6 ------- Run | Yrd Mat Min Mat Mat Fac Fac Was Slots Evolved 8 | . . . 2 2 2 2 . Power 1 | . . . . . . 1 . Propulsion 3 | . . . 1 1 1 . . Utility 2 | . . . . 1 1 . . Weapon 2 | . . . 1 . . 1 . Parts Attached 58 | 7 4 5 6 24 7 5 . Power 13 | 1 . 2 3 2 3 2 . Engine 9 | 1 . 1 1 2 3 1 . Core 4 | . . 1 2 . . 1 . Reactor . | . . . . . . . . Propulsion 21 | 3 2 . 1 10 4 1 . Treads 3 | . . . . 3 . . . Leg 3 | 1 . . . 2 . . . Wheel 2 | 2 . . . . . . . Hover 8 | . 2 . . 1 4 1 . Flight 5 | . . . 1 4 . . . Utility 10 | 1 1 2 1 4 . 1 . Device 5 | . 1 1 . 2 . 1 . Storage 3 | 1 . 1 . 1 . . . Processor . | . . . . . . . . Hackware . | . . . . . . . . Protection 2 | . . . 1 1 . . . Artifact . | . . . . . . . . Weapon 14 | 2 1 1 1 8 . 1 . Energy Gun 3 | . . . . 2 . 1 . Energy Cannon . | . . . . . . . . Ballistic Gun 10 | 2 . 1 1 6 . . . Ballistic Cannon . | . . . . . . . . Launcher 1 | . 1 . . . . . . Special Weapon . | . . . . . . . . Impact Weapon . | . . . . . . . . Slashing Weapon . | . . . . . . . . Piercing Weapon . | . . . . . . . . Special Melee Weapon . | . . . . . . . . Unidentified Prototypes 2 | . . 1 1 . . . . Parts Lost 21 | . . . 1 14 . . 6 Power 1 | . . . . . . . 1 Propulsion 10 | . . . 1 7 . . 2 Utility 4 | . . . . 2 . . 2 Weapon 6 | . . . . 5 . . 1 Highest Loss Streak 12 | . . . 1 12 . . 6 To Critical Strikes 1 | . . . . 1 . . . Average Slot Usage (%) 84 | . 88 100 80 81 76 89 73 Engine 4 | . 14 14 . . 7 7 4 Core 5 | . . . 10 8 . 4 4 Treads 2 | . . . . 5 . . . Hover 15 | . 10 28 11 7 23 33 25 Flight 4 | . . . 3 8 6 . . Device 13 | . 3 22 15 8 7 9 10 Storage 2 | . 14 5 . 1 7 6 4 Protection 6 | . . . 6 13 . . . Energy Gun 1 | . . . . 3 . 6 4 Ballistic Gun 17 | . 17 14 21 17 23 20 16 Launcher 7 | . 10 14 11 4 . . . Naked Turns 18 | . . . . . . . 18 Heaviest Build 35 | 7 11 12 21 23 22 35 35 Greatest Support 45 | 20 20 14 14 42 36 45 45 Greatest Overweight (x) 4 | . 1 . 2 4 . . . Average Overweight (x) . | . . . 1 . . . . Largest Inventory Capacity 5 | 5 5 5 5 5 5 5 5 Average Capacity 5 | 5 5 5 5 5 5 5 5 Most Carried 5 | 5 5 4 5 5 5 4 3 Average Carried 3 | 2 3 3 3 3 3 2 3 Final Capacity 5 | 5 5 5 5 5 5 5 5 Final Carried 5 | 3 2 4 5 1 5 3 3 Class Distribution -------------------- 39% | Bomber 34% | Mutant 14% | Tank 6% | Scavenger-Sprinter 3% | Scavenger-Tank Dominant Class ---------------- Mutant | -10/Materials Mutant | -10/Mines Bomber | -9/Materials Bomber | -8/Materials Tank | -7/Factory Tank | -6/Factory Tank | -6/Waste Resources | -11 -10 -10 -9 -8 -7 -6 -6 ----------- Run | Yrd Mat Min Mat Mat Fac Fac Was Matter Collected 1293 | 332 . 253 184 476 48 . . Remotely . | . . . . . . . . Salvage Created 1632 | 63 . 181 138 882 117 . 251 Parts 100 | 9 . 15 18 44 8 . 6 Haulers Intercepted . | . . . . . . . . Recyclers Shooed 4 | . . 1 2 1 . . . Parts Field Recycled . | . . . . . . . . Retrieved Matter . | . . . . . . . . Parts Self-Destructed . | . . . . . . . . Prevented . | . . . . . . . . Kills | -11 -10 -10 -9 -8 -7 -6 -6 ------- Run | Yrd Mat Min Mat Mat Fac Fac Was Combat Hostiles Destroyed 35 | 1 . 6 7 18 2 . 1 Guns 25 | 1 . 4 2 15 2 . 1 AOE 10 | . . 2 5 3 . . . Classes Destroyed 12 | 2 . 3 4 2 . . 1 Worker 3 | 1 . 1 . 1 . . . Builder 1 | . . . 1 . . . . Tunneler 1 | . . 1 . . . . . Recycler 2 | . . . . 2 . . . Operator 1 | . . . 1 . . . . Watcher 5 | . . . 2 3 . . . Swarmer 14 | . . 2 5 7 . . . Grunt 10 | 1 . 3 . 6 . . . Sentry 6 | . . . 2 3 1 . . Hunter 3 | . . . . 2 1 . . Compactor 1 | . . . . . . . 1 Assembled 1 | . . 1 . . . . . Best Kill Streak 9 | 1 . 4 6 9 1 . 1 Combat Bots Only 6 | 1 . 3 6 6 1 . 1 Max Kills in Single Turn 3 | 1 . 3 2 2 1 . 1 Gunslinging 1 | . . . . 1 . . . Exploded 2 | . . 2 2 2 . . . Melee . | . . . . . . . . Uniques/NPCs Destroyed . | . . . . . . . . Combat | -11 -10 -10 -9 -8 -7 -6 -6 -------- Run | Yrd Mat Min Mat Mat Fac Fac Was Hostile Shots Fired 312 | 1 . 11 21 221 29 . 29 Missed 74 | . . 4 8 46 14 . 2 Damage Taken 2776 | 9 . 88 97 1527 82 . 973 Core 1091 | . . 7 34 174 17 . 859 Absorbed by Shields 133 | . . 38 41 28 22 . 4 Redirected to Shielding 89 | . . . . 89 . . . Ignored by Resistances 849 | 3 . 35 42 472 38 . 259 Regen/Repaired (Parts) 34 | . . . . . 34 . . Core Remaining (%) 90 | 100 . 97 91 68 97 . . Volleys Fired 142 | 3 . 54 15 50 5 2 13 Largest 4 | 2 . 1 3 3 3 4 4 Hottest 155 | 40 . 30 78 98 75 155 155 Shots Fired 263 | 6 . 54 27 122 15 8 31 Gun 241 | 6 . 49 16 116 15 8 31 Cannon . | . . . . . . . . Launcher 22 | . . 5 11 6 . . . Special . | . . . . . . . . Kinetic 203 | 6 . 49 16 88 15 6 23 Thermal 23 | . . . . 13 . 2 8 Explosive 22 | . . 5 11 6 . . . Electromagnetic 15 | . . . . 15 . . . Robot Hit Streak 18 | 5 . 6 11 16 10 10 18 Robot Miss Streak 4 | . . 2 3 4 1 1 1 Penetration Max 1 | . . . . 1 . . . Secondary Targets 6 | . . . . 5 . . 1 Max Gunslinging Chain 2 | . . . . 2 . . 1 Shots Hit Robots 169 | 5 . 9 18 86 13 8 30 Core Hits 94 | 4 . 8 18 44 6 3 11 Critical Kills 3 | 1 . . . 2 . . . Critical Parts Destroyed 3 | . . . . 3 . . . Critical Strikes 6 | 1 . . . 5 . . . Destroy 6 | 1 . . . 5 . . . Melee Attacks . | . . . . . . . . Impact . | . . . . . . . . Slashing . | . . . . . . . . Piercing . | . . . . . . . . Sneak Attacks . | . . . . . . . . Combat Hostiles . | . . . . . . . . Follow-up Attacks . | . . . . . . . . Damage Inflicted 3809 | 53 . 309 779 1691 198 153 626 Guns 2797 | 53 . 145 187 1435 198 153 626 Cannons . | . . . . . . . . Explosions 986 | . . 138 592 256 . . . Melee . | . . . . . . . . Ramming 26 | . . 26 . . . . . Kinetic 2123 | 53 . 145 187 1057 198 95 388 Thermal 480 | . . . . 184 . 58 238 Explosive 986 | . . 138 592 256 . . . Electromagnetic 194 | . . . . 194 . . . Impact . | . . . . . . . . Slashing . | . . . . . . . . Piercing . | . . . . . . . . Highest Corruption 5 | . . . . . . . 5 Average Corruption 5 | . . . . . . . 5 Corruption Purged . | . . . . . . . . Corruption Blocked . | . . . . . . . . Effects 3 | . . . . . . . 3 Message Errors 2 | . . . . . . . 2 Energy Discharges 1 | . . . . . . . 1 Overload Shots . | . . . . . . . . Overflow Damage . | . . . . . . . . Projectiles . | . . . . . . . . Explosions . | . . . . . . . . Melee . | . . . . . . . . Knockbacks 1 | . . 1 . . . . . Impact 1 | . . 1 . . . . . Kinetic . | . . . . . . . . Secondary . | . . . . . . . . Self-Inflicted Damage 81 | . . 76 5 . . . . Shots 4 | . . 3 1 . . . . Rammed 3 | . . 1 1 . . . 1 Targets Rammed 3 | . . 1 1 . . . 1 Kicked . | . . . . . . . . Crushed . | . . . . . . . . Highest Temperature 492 | . . 14 135 266 64 209 492 Average Temperature 110 | . . 8 54 87 30 141 276 Received Heat Transfer 663 | 6 . 8 30 567 32 . 20 Effects 11 | . . . . 1 . . 10 Shutdowns 4 | . . . . . . . 4 Energy Bleed 2 | . . . . 1 . . 1 Interference 3 | . . . . . . . 3 Short Circuit 1 | . . . . . . . 1 Damage (major) 1 | . . . . . . . 1 Siege Activations . | . . . . . . . . Robots Corrupted . | . . . . . . . . Combat Hostiles . | . . . . . . . . Parts Fried . | . . . . . . . . Impact Corruptions . | . . . . . . . . Robots Melted . | . . . . . . . . Combat Hostiles . | . . . . . . . . Parts Melted . | . . . . . . . . Heat Transferred 1131 | . . . . 481 . 125 525 Parts Sabotaged . | . . . . . . . . Parts Stolen . | . . . . . . . . Parts Stripped . | . . . . . . . . Power Chain Reactions . | . . . . . . . . Alert | -11 -10 -10 -9 -8 -7 -6 -6 ------- Run | Yrd Mat Min Mat Mat Fac Fac Was Peak Influence 354 | 25 13 141 349 354 208 87 25 Initial 118 | . 13 3 46 53 118 87 25 Average 116 | 4 13 33 154 166 174 87 16 Maximum Alert Level 1 | . . . 1 1 1 . . Low Security (%) 81 | 100 100 100 89 62 48 100 100 Level 1 18 | . . . 10 37 51 . . Level 2 . | . . . . . . . . Level 3 . | . . . . . . . . Level 4 . | . . . . . . . . Level 5 . | . . . . . . . . High Security . | . . . . . . . . Max Security . | . . . . . . . . Squads Dispatched 6 | . 2 1 1 2 . . . Investigation 4 | . 2 1 . 1 . . . Extermination . | . . . . . . . . Reinforcement 2 | . . . 1 1 . . . Assault . | . . . . . . . . Garrison . | . . . . . . . . Intercept . | . . . . . . . . Searches Triggered . | . . . . . . . . Construction Impeded . | . . . . . . . . Haulers Reinforced . | . . . . . . . . Active Scanning Responses . | . . . . . . . . Cargo Convoy Interrupts . | . . . . . . . . Stealth | -11 -10 -10 -9 -8 -7 -6 -6 --------- Run | Yrd Mat Min Mat Mat Fac Fac Was Distress Signals 3 | . . . . 3 . . . Communications Jammed . | . . . . . . . . Distress Signals . | . . . . . . . . Times Spotted 55 | 1 . 7 11 28 2 . 6 Peak Tracking Total 9 | 1 . 3 5 9 1 . 5 Tactical Retreats . | . . . . . . . . Traps | -11 -10 -10 -9 -8 -7 -6 -6 ------- Run | Yrd Mat Min Mat Mat Fac Fac Was Traps Triggered 3 | . 1 . . 1 . 1 . Indirectly . | . . . . . . . . Trap Hack Attempts . | . . . . . . . . Triggered . | . . . . . . . . Disarmed . | . . . . . . . . Reprogrammed . | . . . . . . . . Reused . | . . . . . . . . Traps Extracted . | . . . . . . . . Installed . | . . . . . . . . Triggered . | . . . . . . . . Machines | -11 -10 -10 -9 -8 -7 -6 -6 ---------- Run | Yrd Mat Min Mat Mat Fac Fac Was Machines Disabled 2 | . . . 2 . . . . Max in Single Turn 1 | . . . 1 . . . . Machines Repaired . | . . . . . . . . Machines Dismantled . | . . . . . . . . Machines Sabotaged . | . . . . . . . . Overloaded Fab Kills . | . . . . . . . . Hacking | -11 -10 -10 -9 -8 -7 -6 -6 --------- Run | Yrd Mat Min Mat Mat Fac Fac Was Machines Accessed 10 | . 1 1 2 4 2 . . Terminals 7 | . 1 . 2 3 1 . . Fabricators . | . . . . . . . . Repair Stations 1 | . . . . . 1 . . Recycling Units . | . . . . . . . . Scanalyzers . | . . . . . . . . Garrison Access 1 | . . . . 1 . . . Total Hacks 28 | . 4 1 7 13 3 . . Successful 14 | . 3 1 5 3 2 . . Failed 14 | . 1 . 2 10 1 . . Catastrophic 3 | . . . . 3 . . . Database Lockouts . | . . . . . . . . Manual . | . . . . . . . . Terminals 21 | . 4 . 7 9 1 . . Fabricators . | . . . . . . . . Repair Stations 2 | . . . . . 2 . . Recycling Units . | . . . . . . . . Scanalyzers . | . . . . . . . . Garrison Access 4 | . . . . 4 . . . Terminal Hacks 12 | . 3 1 5 3 . . . Record 3 | . 1 . . 2 . . . Prototype ID Bank 1 | . . . 1 . . . . Open Door 1 | . . 1 . . . . . Emergency Access Points 1 | . . . 1 . . . . Alert Level 2 | . 1 . 1 . . . . Recall Investigation 1 | . . . 1 . . . . Registered Components 1 | . . . . 1 . . . Zone Layout 2 | . 1 . 1 . . . . Fabricator Hacks . | . . . . . . . . Repair Station Hacks 2 | . . . . . 2 . . Scan Component 1 | . . . . . 1 . . Repair 1 | . . . . . 1 . . Recycling Unit Hacks . | . . . . . . . . Scanalyzer . | . . . . . . . . Garrison Access Hacks . | . . . . . . . . Unauthorized Hacks . | . . . . . . . . Terminals . | . . . . . . . . Fabricators . | . . . . . . . . Repair Stations . | . . . . . . . . Recycling Units . | . . . . . . . . Scanalyzers . | . . . . . . . . Garrison Access . | . . . . . . . . Data Cores Recovered 1 | . . . 1 . . . . Used . | . . . . . . . . Hacking Detections 8 | . 1 . 2 3 2 . . Full Trace Events 2 | . 1 . . 1 . . . Feedback Events . | . . . . . . . . Feedback Blocked . | . . . . . . . . Robot Schematics Acquired . | . . . . . . . . Robots Built . | . . . . . . . . Authchips . | . . . . . . . . Time . | . . . . . . . . Total Robot Build Rating . | . . . . . . . . Part Schematics Acquired . | . . . . . . . . Parts Built . | . . . . . . . . Authchips . | . . . . . . . . Time . | . . . . . . . . Total Part Build Rating . | . . . . . . . . Parts Repaired 1 | . . . . . 1 . . Time 44 | . . . . . 44 . . Parts Recycled . | . . . . . . . . Recycled Matter . | . . . . . . . . Retrieved Matter . | . . . . . . . . Retrieved Components . | . . . . . . . . Parts Scanalyzed . | . . . . . . . . Part Schematics Acquired . | . . . . . . . . Parts Damaged . | . . . . . . . . Bothacking | -11 -10 -10 -9 -8 -7 -6 -6 ------------ Run | Yrd Mat Min Mat Mat Fac Fac Was Used RIF Installer . | . . . . . . . . Robots Hacked . | . . . . . . . . Non-combat . | . . . . . . . . Combat . | . . . . . . . . Robot Hacks Applied . | . . . . . . . . Relay Couplers Released . | . . . . . . . . Fabnet Peak Effective % . | . . . . . . . . Robots Rewired . | . . . . . . . . Allies Hacked . | . . . . . . . . Hacks Repelled . | . . . . . . . . Allies | -11 -10 -10 -9 -8 -7 -6 -6 -------- Run | Yrd Mat Min Mat Mat Fac Fac Was Total Allies 1 | . . . . . . . 1 Largest Group 1 | . . . . . . . 1 Highest-Rated Group 31 | . . . . . . . 31 Highest-Rated Ally 31 | . . . . . . . 31 Total Orders . | . . . . . . . . Ally Attacks 14 | . . . . . . . 14 Total Damage 250 | . . . . . . . 250 Kills . | . . . . . . . . Allies Corrupted . | . . . . . . . . Allies Melted . | . . . . . . . . Intel | -11 -10 -10 -9 -8 -7 -6 -6 ------- Run | Yrd Mat Min Mat Mat Fac Fac Was Robot Analysis Total . | . . . . . . . . Derelict Logs Recovered 1 | . . 1 . . . . . Drone Launches . | . . . . . . . . Drone Recoveries . | . . . . . . . . Exploration | -11 -10 -10 -9 -8 -7 -6 -6 ------------- Run | Yrd Mat Min Mat Mat Fac Fac Was Turns Passed 2130 | 105 77 399 536 714 148 44 107 Spaces Moved 1867 | 101 89 513 301 450 243 69 101 Core 38 | 31 . . . 7 . . . Treads 209 | . . . . 209 . . . Legs 13 | . . . . 13 . . . Wheels 125 | 70 55 . . . . . . Hover 1239 | . 34 513 301 58 163 69 101 Flight 243 | . . . . 163 80 . . Fastest Speed 31 | 50 56 56 56 31 31 44 44 Average Speed 86 | 70 71 56 161 115 42 44 46 Slowest Speed 280 | 80 120 56 180 280 52 44 48 Overloaded Moves . | . . . . . . . . Propulsion Burnouts . | . . . . . . . . Robots Hopped 5 | . . . . 5 . . . Cave-ins Triggered . | . . . . . . . . Exploration Rate (%) 29 | 6 20 75 29 53 3 2 51 Regions Visited 7 Branch Regions 1 Pre-discovered Areas . | . . . . . . . . Known Exits Taken . | . . . . . . . . Unknown Exits Taken 6 | 1 1 1 1 1 1 . . Scrap Searched . | . . . . . . . . Spaces Dug 6 | . . . 6 . . . . Terrain Destroyed 117 | . . 13 65 39 . . . Melee . | . . . . . . . . Projectile . | . . . . . . . . AOE 117 | . . 13 65 39 . . . Terrain Rammed . | . . . . . . . . Walls Destroyed . | . . . . . . . . Machines Disabled . | . . . . . . . . Actions | -11 -10 -10 -9 -8 -7 -6 -6 --------- Run | Yrd Mat Min Mat Mat Fac Fac Was Total 2180 | 129 102 578 329 547 278 78 139 Wait 42 | 6 . . . 3 9 . 24 Move 1851 | 100 88 512 300 439 242 69 101 Hop 5 | . . . . 5 . . . Pick Up 56 | 11 5 4 5 19 10 2 . Fast Attach . | . . . . . . . . Attach 33 | 6 1 . 2 19 1 4 . Detach . | . . . . . . . . Swap 25 | 1 3 5 4 5 6 1 . Drop 23 | 2 5 2 2 7 5 . . Fire 142 | 3 . 54 15 50 5 2 13 Melee . | . . . . . . . . Ram 3 | . . 1 1 . . . 1 Kick . | . . . . . . . . Crush . | . . . . . . . . Escape Stasis . | . . . . . . . . Rewire . | . . . . . . . . Trap . | . . . . . . . . Miscellaneous . | . . . . . . . . Route ------- -11/Scrapyard -10/Materials -10/Mines -9/Materials -8/Materials -7/Factory -6/Factory -6/Waste History --------- Turn | Location | Event 2 | -11/Scrapyard | Met Revision 17 87 | -11/Scrapyard | Discovered new exit (range 8) 106 | -11/Scrapyard | Entered Materials 174 | -10/Materials | Discovered new exit (range 16) 183 | -10/Materials | Entered Mines 200 | -10/Mines | Found a damaged Exp. Sensor Array with a note attached 201 | -10/Mines | Found Prototype Device 263 | -10/Mines | Learned Materials trap positions 289 | -10/Mines | Met a Derelict shopkeep closing up shop 315 | -10/Mines | Build established: Mutant 334 | -10/Mines | Identified Exp. Sensor Array 452 | -10/Mines | Excavation squad dispatched 452 | -10/Mines | A large section of the Mines collapsed 571 | -10/Mines | Discovered new exit (range 10) 582 | -10/Mines | Entered Materials 582 | -9/Materials | Evolved 2 slots: Propulsion x1, Weapon x1 583 | -9/Materials | Loaded intel: 26 trap records 923 | -9/Materials | Build established: Bomber 1039 | -9/Materials | Discovered new exit (range 12) 1118 | -9/Materials | Entered another Materials area 1118 | -8/Materials | Evolved 2 slots: Propulsion x1, Utility x1 1725 | -8/Materials | Lost 12 parts (6n2u4w) 1817 | -8/Materials | Discovered new exit (range 11) 1832 | -8/Materials | Entered Factory 1832 | -7/Factory | Evolved 2 slots: Propulsion x1, Utility x1 1914 | -7/Factory | Discovered new exit (range 16) 1974 | -7/Factory | Repaired Gatling Laser 1980 | -7/Factory | Entered another Factory area 1980 | -6/Factory | Evolved 2 slots: Power x1, Weapon x1 2024 | -6/Factory | Sucked down chute 2024 | -6/Factory | Entered Waste 2025 | -6/Waste | Met a frightened Derelict 2037 | -6/Waste | Spotted C-40 Crusher 2039 | -6/Waste | EMP discharged 2044 | -6/Waste | Spotted C-40 Crusher 2045 | -6/Waste | Destroyed C-40 Crusher 2072 | -6/Waste | Spotted C-40 Crusher 2078 | -6/Waste | Spotted C-40 Crusher 2078 | -6/Waste | Spotted C-40 Crusher 2081 | -6/Waste | Spotted C-40 Crusher 2109 | -6/Waste | Crushed by Compactor (1 part destroyed, 2 dropped) 2110 | -6/Waste | Crushed by Compactor (1 part destroyed, 2 dropped) 2112 | -6/Waste | Crushed by Compactor (1 part destroyed, 2 dropped) 2113 | -6/Waste | Crushed by Compactor (1 part destroyed, 1 dropped) 2113 | -6/Waste | Crushed by Compactor (1 part destroyed, 1 dropped) 2123 | -6/Waste | Core integrity fell below 50% 2129 | -6/Waste | Core integrity fell below 20% 2131 | -6/Waste | Destroyed by C-40 Crusher with Compactor Last Messages --------------- Lgt. Fission Core crushed. Gravmag System crushed. Shield Generator destroyed. Slammed into C-40 Crusher. Imp. Deuterium Engine crushed. Gravmag System crushed. Broken Gravmag System crushed. Gravmag System crushed. Minigun crushed. Gatling Laser crushed. Broken Gravmag System crushed. Minigun crushed. Gatling Laser crushed. Gravmag System crushed. Imp. Reaction Control System crushed. Com. Matter Pod crushed. Minigun crushed. Com. Matter Pod crushed. ALERT: Foreign system detected. Charging EMP. [Achievement: First Step to Greatness] Map ----- +----------------------------------------------------+ | ?????????????????????????????????????????????????? | | ?????????????????????????????????????????????????? | | ?????????????????????????????????????????????????? | | ?????????????????????????????????????????????????? | | ?????????????????????????????????????????????????? | | ?????????????????????????????????????????????????? | | ?????????????????????????????????????????????????? | | ?????????????????????????????????????????????????? | | ?????????????????????????????????????????????????? | | ?????????????????????????????????????????????????? | | ?????????????????????????????????????????????????? | | ?????????????????????????????????????????????????? | | ?????????????????????????????????????????????????? | | ?????????????????????????????????????????????????? | | ?????????????????????????????????????????????????? | | ?????????????????????????????????????????????????? | | ?????????????????????##########??????????????????? | | ?????????????????????# #??????????????????? | | ?????????????????????# #??????????????????? | | ?????????????????????# #??????????????????? | | ?????????????????????# #??????????????????? | | ?????????????????????# #??????????????????? | | ?????????????????????# #??????????????????? | | ?????????????????????#!CCCC #??????????????????? | | ???????????#####?????# CCCC #??????????????????? | | ???????????# #????###=@CC###??????????????????? | | ???????????# #??????#CCCC#????????????????????? | | ???????????# #??????#CCCC#????????????????????? | | ???????????# #??????# CC#????????????????????? | | ?????????### ######## ######???????????????? | | ?????????# ????????? | | ?????????# ! ????????? | | ?????????# ????????? | | ?????????# ?????????? | | ?????????### ######## ######## ?????????? | | ???????????# #??????# #????????? ??????????? | | ???????????# #??????# #????????????????????? | | ???????????# #??????# #????????????????????? | | ?????????### ######## ######???????????????? | | ?????????# * ??????????????? | | ?????????# ??????????????? | | ?????????# ??????????????? | | ?????????# * ??????????????? | | ?????????### ######## ####?????????????????? | | #########??# #??????? #????????????????????? | | #??# #??????? #????????????????????? | | #??# #????????????????????????????????? | | #### #????????????????????????????????? | | #????????????????????????????????? | | #????????????????????????????????? | +----------------------------------------------------+ Best States ------------- Heat Dissipation 37 Energy Generation 29 Energy Capacity 470 Matter Stores 450 Matter Capacity 450 Sight Range 16 Robot Scan Range 20 Terrain Scan Density 10 Armor Coverage 150 Resistance: KI 20 Resistance: TH 20 Resistance: EX 20 Resistance: EM 20 Resistance: I 20 Resistance: S 20 Resistance: P 20 Power Shielding 66 Evasion (%) 66 Recoil Reduction 2 Offensive Hacking 10 Item Schematics ----------------- None Robot Schematics ------------------ None Fabricated ------------ Nothing Alien Tech Used ----------------- None Achievements -------------- Crack Shot First Step to Greatness Made in Tau Ceti IV One Hack Too Far Oops Part-time Mechanic Please Form A Line Risk Taker Serviceable Loadout Uninvited Guest Universal Adapter Challenges ------------ None Game ------ Seed AuthchipPowerPurifier Manual? 0 Play Time 00:48:13 Cumulative 0.7 hours Start 2024.04.01 @ 17:57:02 End 2024.04.01 @ 18:44:57 Sessions 4 Manual Loads 0 Difficulty Adventurer Special Mode None Game No. 1 Rogue 0 Adventurer 1 Explorer 0 Win Type - Total 0 Types 0/0/0/0/0/0/0/0/0 Lore% 0 Gallery% 3 Achievement% 4 Wizard Run 0 Options --------- Layout 0 ASCII 0 Keyboard 0 Movement Arrows Keybinds 0 Fullscreen 1 Font 18/SmallcapsGlow Map View 76x50 Zoom Use 0% Tactical HUD 0 Map Filters NONE Filters NONE Steam 1 RUN: d4f6f081-4fcc-440d-914e-4c3a01ae54b9